fUST/lending_fUST_20250403
["ID","MTS","AMOUNT","RATE_DAILY","PERIOD"]
[357063579,1743683442832,-500.0,0.00016438,2]
[357063580,1743683442841,-500.0,0.00016438,2]
[357063581,1743683442852,-500.0,0.00016438,2]
[357063582,1743683442862,-508.15096628,0.00016438,2]
[357063583,1743683442872,-500.0,0.00016438,2]
[357063584,1743683442882,-500.0,0.00016438,2]
[357063585,1743683442892,-500.0,0.00016438,2]
[357063586,1743683442902,-500.0,0.00016438,2]
[357063587,1743683442912,-500.0,0.00016438,2]
[357063588,1743683442923,-500.0,0.00016438,2]
[357063589,1743683442933,-500.0,0.00016438,2]
[357063590,1743683442944,-500.0,0.00016438,2]
[357063591,1743683442955,-500.0,0.00016438,2]
[357063592,1743683442965,-500.0,0.00016438,2]
[357063593,1743683442975,-500.0,0.00016438,2]
[357063594,1743683442988,-500.0,0.00016438,2]
[357063595,1743683442999,-500.0,0.00016438,2]
[357063596,1743683443010,-500.0,0.00016438,2]
[357063597,1743683443020,-500.0,0.00016438,2]
[357063598,1743683443031,-500.0,0.00016438,2]
[357063599,1743683443041,-500.0,0.00016438,2]
[357063600,1743683443051,-500.0,0.00016438,2]
[357063601,1743683443062,-500.0,0.00016438,2]
[357063603,1743683443072,-500.0,0.00016438,2]
[357063604,1743683443082,-500.0,0.00016438,2]
[357063605,1743683443093,-500.0,0.00016438,2]
[357063606,1743683443103,-500.0,0.00016438,2]
[357063608,1743683443220,-500.0,0.00016438,2]
[357063609,1743683443231,-500.0,0.00016438,2]
[357063610,1743683443244,-500.0,0.00016438,2]
[357063611,1743683443253,-500.0,0.00016438,2]
[357063612,1743683443263,-500.0,0.00016438,2]
[357063613,1743683443273,-500.0,0.00016438,2]
[357063615,1743683443282,-500.0,0.00016438,2]
[357063617,1743683443292,-500.0,0.00016438,2]
[357063620,1743683443302,-500.0,0.00016438,2]
[357063622,1743683443312,-500.0,0.00016438,2]
[357063624,1743683443321,-500.0,0.00016438,2]
[357063627,1743683443331,-515.40996342,0.00016438,2]
[357063630,1743683443341,-500.0,0.00016438,2]
[357063633,1743683443351,-500.0,0.00016438,2]
[357063636,1743683443360,-500.0,0.00016438,2]
[357063640,1743683443370,-500.0,0.00016438,2]
[357063644,1743683443380,-500.0,0.00016438,2]
[357063648,1743683443389,-526.50953011,0.00016438,2]
[357063650,1743683443399,-500.0,0.00016438,2]
[357063652,1743683443410,-500.0,0.00016438,2]
[357063654,1743683443420,-687.11,0.00016438,2]
[357063656,1743683443431,-500.0,0.00016438,2]
[357063658,1743683443440,-500.0,0.00016438,2]
[357063661,1743683443450,-515.44145597,0.00016438,2]
[357063663,1743683443460,-515.13009481,0.00016438,2]
[357063665,1743683443470,-500.0,0.00016438,2]
[357063667,1743683443480,-511.42532965,0.00016438,2]
[357063670,1743683443492,-500.0,0.00016438,2]
[357063672,1743683443502,-500.0,0.00016438,2]
[357063674,1743683443512,-518.31851138,0.00016438,2]
[357063676,1743683443521,-500.0,0.00016438,2]
[357063678,1743683443531,-500.0,0.00016438,2]
[357063680,1743683443540,-520.2109918,0.00016438,2]
[357063681,1743683443550,-500.0,0.00016438,2]
[357063683,1743683443559,-505.9726338,0.00016438,2]
[357063685,1743683443569,-500.0,0.00016438,2]
[357063688,1743683443578,-500.0,0.00016438,2]
[357063690,1743683443589,-500.0,0.00016438,2]
[357063692,1743683443599,-500.0,0.00016438,2]
[357063693,1743683443611,-500.0,0.00016438,2]
[357063695,1743683443621,-500.0,0.00016438,2]
[357063697,1743683443631,-500.0,0.00016438,2]
[357063700,1743683443640,-500.0,0.00016438,2]
[357063702,1743683443650,-518.75545325,0.00016438,2]
[357063704,1743683443660,-525.26713005,0.00016438,2]
[357063706,1743683443669,-500.0,0.00016438,2]
[357063708,1743683443685,-500.0,0.00016438,2]
[357063710,1743683443695,-507.87977483,0.00016438,2]
[357063712,1743683443705,-500.0,0.00016438,2]
[357063714,1743683443715,-500.0,0.00016438,2]
[357063716,1743683443725,-500.0,0.00016438,2]
[357063718,1743683443736,-442.54168399,0.00016438,2]
[357063720,1743683443746,-500.0,0.00016438,2]
[357063722,1743683443756,-500.0,0.00016438,2]
[357063724,1743683443765,-500.0,0.00016438,2]
[357063726,1743683443775,-500.0,0.00016438,2]
[357063728,1743683443784,-500.0,0.00016438,2]
[357063729,1743683443794,-500.0,0.00016438,2]
[357063730,1743683443804,-500.0,0.00016438,2]
[357063731,1743683443813,-500.0,0.00016438,2]
[357063733,1743683443823,-500.0,0.00016438,2]
[357063735,1743683443833,-224.52613935,0.00016438,2]
[357063737,1743683443842,-500.0,0.00016438,2]
[357063738,1743683443852,-500.0,0.00016438,2]
[357063739,1743683443861,-500.58381687,0.00016438,2]
[357063740,1743683443871,-500.0,0.00016438,2]
[357063741,1743683443881,-457.76592072,0.00016438,2]
[357063742,1743683443891,-514.00630495,0.00016438,2]
[357063743,1743683443901,-500.0,0.00016438,2]
[357063744,1743683443910,-500.0,0.00016438,2]
[357063745,1743683443920,-500.0,0.00016438,2]
[357063746,1743683443929,-500.0,0.00016438,2]
[357063747,1743683443939,-500.0,0.00016438,2]
[357063748,1743683443949,-500.0,0.00016438,2]
[357063749,1743683443959,-111922.53,0.00016438,2]
[357063750,1743683443969,-500.0,0.00016438,2]
[357063751,1743683443978,-500.0,0.00016438,2]
[357063752,1743683443992,-500.0,0.00016438,2]
[357063753,1743683444002,-500.0,0.00016438,2]
[357063754,1743683444011,-500.0,0.00016438,2]
[357063755,1743683444021,-301.91729557,0.00016438,2]
[357063756,1743683444031,-500.0,0.00016438,2]
[357063757,1743683444044,-500.0,0.00016438,2]
[357063758,1743683444055,-512.81,0.00016438,2]
[357063759,1743683444064,-500.0,0.00016438,2]
[357063760,1743683444074,-500.0,0.00016438,2]
[357063761,1743683444083,-500.0,0.00016438,2]
[357063762,1743683444092,-511.82711023,0.00016438,2]
[357063763,1743683444102,-500.0,0.00016438,2]
[357063764,1743683444112,-505.52800471,0.00016438,2]
[357063765,1743683444122,-500.0,0.00016438,2]
[357063766,1743683444131,-500.0,0.00016438,2]
[357063767,1743683444141,-537.46898671,0.00016438,2]
[357063768,1743683444151,-500.0,0.00016438,2]
[357063769,1743683444161,-500.0,0.00016438,2]
[357063770,1743683444171,-500.0,0.00016438,2]
[357063771,1743683444182,-500.0,0.00016438,2]
[357063772,1743683444192,-500.0,0.00016438,2]
[357063773,1743683444202,-500.0,0.00016438,2]
[357063774,1743683444212,-500.0,0.00016438,2]
[357063775,1743683444222,-514.93384771,0.00016438,2]
[357063776,1743683444232,-500.0,0.00016438,2]
[357063777,1743683444244,-500.0,0.00016438,2]
[357063778,1743683444253,-507.66811254,0.00016438,2]
[357063779,1743683444263,-500.0,0.00016438,2]
[357063780,1743683444272,-513.77905744,0.00016438,2]
[357063781,1743683444283,-509.29027029,0.00016438,2]
[357063782,1743683444292,-500.0,0.00016438,2]
[357063783,1743683444303,-500.0,0.00016438,2]
[357063784,1743683444312,-500.0,0.00016438,2]
[357063785,1743683444323,-500.0,0.00016438,2]
[357063786,1743683444333,-500.0,0.00016438,2]
[357063787,1743683444343,-500.0,0.00016438,2]
[357063788,1743683444353,-500.0,0.00016438,2]
[357063789,1743683444363,-500.0,0.00016438,2]
[357063790,1743683444372,-500.0,0.00016438,2]
[357063791,1743683444382,-500.0,0.00016438,2]
[357063792,1743683444391,-500.0,0.00016438,2]
[357063793,1743683444401,-500.0,0.00016438,2]
[357063794,1743683444411,-500.0,0.00016438,2]
[357063795,1743683444421,-500.0,0.00016438,2]
[357063796,1743683444430,-500.0,0.00016438,2]
[357063797,1743683444439,-500.0,0.00016438,2]
[357063799,1743683444450,-500.0,0.00016438,2]
[357063801,1743683444459,-500.0,0.00016438,2]
[357063802,1743683444469,-500.0,0.00016438,2]
[357063803,1743683444478,-503.08964786,0.00016438,2]
[357063804,1743683444489,-463.2297093,0.00016438,2]
[357063805,1743683444498,-500.0,0.00016438,2]
[357063806,1743683444508,-500.0,0.00016438,2]
[357063807,1743683444518,-500.0,0.00016438,2]
[357063808,1743683444528,-500.0,0.00016438,2]
[357063810,1743683444538,-500.0,0.00016438,2]
[357063812,1743683444548,-500.0,0.00016438,2]
[357063813,1743683444557,-500.0,0.00016438,2]
[357063815,1743683444567,-500.0,0.00016438,2]
[357063817,1743683444577,-510.11747172,0.00016438,2]
[357063818,1743683444587,-500.0,0.00016438,2]
[357063819,1743683444597,-500.0,0.00016438,2]
[357063820,1743683444607,-529.01,0.00016438,2]
[357063821,1743683444619,-500.0,0.00016438,2]
[357063822,1743683444630,-500.0,0.00016438,2]
[357063823,1743683444640,-500.0,0.00016438,2]
[357063824,1743683444650,-500.0,0.00016438,2]
[357063825,1743683444659,-500.0,0.00016438,2]
[357063826,1743683444669,-500.0,0.00016438,2]
[357063827,1743683444679,-733.09,0.00016438,2]
[357063828,1743683444689,-500.0,0.00016438,2]
[357063829,1743683444699,-500.0,0.00016438,2]
[357063830,1743683444708,-500.0,0.00016438,2]
[357063831,1743683444718,-500.0,0.00016438,2]
[357063832,1743683444727,-500.0,0.00016438,2]
[357063833,1743683444738,-500.0,0.00016438,2]
[357063834,1743683444748,-500.0,0.00016438,2]
[357063835,1743683444758,-466.54713135,0.00016438,2]
[357063836,1743683444770,-500.0,0.00016438,2]
[357063837,1743683444781,-151.0,0.00016438,2]
[357063838,1743683444791,-151.0,0.00016438,2]
[357063839,1743683444801,-151.0,0.00016438,2]
[357063840,1743683444810,-151.0,0.00016438,2]
[357063841,1743683444820,-151.0,0.00016438,2]
[357063842,1743683444829,-151.0,0.00016438,2]
[357063843,1743683444839,-151.0,0.00016438,2]
[357063844,1743683444849,-151.0,0.00016438,2]
[357063845,1743683444858,-151.0,0.00016438,2]
[357063846,1743683444868,-151.0,0.00016438,2]
[357063847,1743683444878,-151.0,0.00016438,2]
[357063848,1743683444888,-151.0,0.00016438,2]
[357063849,1743683444899,-151.0,0.00016438,2]
[357063850,1743683444909,-151.0,0.00016438,2]
[357063851,1743683444918,-240.827341,0.00016438,2]
[357063852,1743683444928,-500.0,0.00016473,2]
[357063853,1743683444937,-500.0,0.00016473,2]
[357063854,1743683444947,-500.0,0.00016473,2]
[357063855,1743683444957,-500.0,0.00016473,2]
[357063856,1743683444966,-160.27535852,0.00016473,2]
[357063857,1743683444976,-500.0,0.00016473,2]
[357063858,1743683444986,-500.0,0.00016473,2]
[357063859,1743683444996,-500.0,0.00016473,2]
[357063860,1743683445005,-500.0,0.00016473,2]
[357063861,1743683445015,-500.0,0.00016473,2]
[357063862,1743683445024,-500.0,0.00016473,2]
[357063863,1743683445034,-500.0,0.00016473,2]
[357063864,1743683445044,-500.0,0.00016473,2]
[357063865,1743683445054,-500.0,0.00016473,2]
[357063866,1743683445063,-500.0,0.00016473,2]
[357063867,1743683445072,-500.0,0.00016473,2]
[357063868,1743683445082,-500.0,0.00016473,2]
[357063869,1743683445092,-500.0,0.00016473,2]
[357063870,1743683445101,-500.0,0.00016473,2]
[357063871,1743683445111,-500.0,0.00016473,2]
[357063873,1743683445120,-500.0,0.00016473,2]
[357063874,1743683445130,-444.86799581,0.00016684,2]
[357063875,1743683445140,-500.0,0.00016684,2]
[357063876,1743683445149,-500.0,0.00016684,2]
[357063877,1743683445159,-480.74664836,0.00016712,2]
[357063878,1743683445168,-521.66,0.00016712,2]
[357063879,1743683445178,-500.0,0.00016712,2]
[357063880,1743683445188,-500.0,0.00016712,2]
[357063881,1743683445197,-481.54504094,0.00016712,2]
[357063882,1743683445207,-500.0,0.00016712,2]
[357063883,1743683445217,-500.0,0.00016712,2]
[357063884,1743683445227,-445.31285766,0.00016712,2]
[357063885,1743683445238,-500.0,0.00016712,2]
[357063886,1743683445251,-500.0,0.00016712,2]
[357063887,1743683445262,-472.37622073,0.00016712,2]
[357063888,1743683445271,-566.7880785,0.00016712,2]
[357063889,1743683445281,-508.45301685,0.00016712,2]
[357063890,1743683445290,-156.93800218,0.00016712,2]
[357063891,1743683445300,-238.35,0.00016712,2]
[357063892,1743683445310,-500.0,0.00016712,2]
[357063893,1743683445319,-500.0,0.00016712,2]
[357063894,1743683445329,-500.0,0.00016712,2]
[357063895,1743683445339,-500.0,0.00016712,2]
[357063896,1743683445348,-615.6027857,0.00016712,2]
[357063897,1743683445359,-516.16,0.00016712,2]
[357063898,1743683445368,-500.0,0.00016712,2]
[357063899,1743683445378,-531.91405567,0.00016712,2]
[357063900,1743683445387,-463.33,0.00016712,2]
[357063901,1743683445397,-500.0,0.00016712,2]
[357063902,1743683445406,-500.0,0.00016712,2]
[357063903,1743683445416,-500.0,0.00016712,2]
[357063904,1743683445426,-500.0,0.00016712,2]
[357063905,1743683445436,-500.0,0.00016712,2]
[357063906,1743683445445,-500.0,0.00016712,2]
[357063907,1743683445456,-363.76,0.00016712,2]
[357063908,1743683445465,-424.31657606,0.00016712,2]
[357063909,1743683445475,-507.32263349,0.00016712,2]
[357063910,1743683445486,-500.0,0.00016712,2]
[357063911,1743683445495,-500.0,0.00016712,2]
[357063912,1743683445505,-240.15802241,0.00016712,2]
[357063913,1743683445515,-517.98712992,0.00016712,2]
[357063914,1743683445525,-515.63295342,0.00016712,2]
[357063915,1743683445534,-530.73381551,0.00016712,2]
[357063916,1743683445544,-451.52,0.00016712,2]
[357063917,1743683445554,-500.0,0.00016712,2]
[357063918,1743683445563,-477.24083592,0.00016712,2]
[357063919,1743683445665,-500.0,0.00016712,2]
[357063920,1743683445691,-530.35992303,0.00016712,2]
[357063921,1743683445702,-500.0,0.00016712,2]
[357063922,1743683445713,-500.0,0.00016712,2]
[357063923,1743683445723,-500.0,0.00016712,2]
[357063924,1743683445735,-570.97,0.00016712,2]
[357063925,1743683445745,-500.0,0.00016712,2]
[357063926,1743683445755,-500.0,0.00016712,2]
[357063927,1743683445765,-562.31205494,0.00016712,2]
[357063928,1743683445776,-408.29249864,0.00016712,2]
[357063929,1743683445787,-500.0,0.00016712,2]
[357063930,1743683445797,-500.0,0.00016712,2]
[357063931,1743683445807,-575.98,0.00016712,2]
[357063932,1743683445817,-500.0,0.00016712,2]
[357063933,1743683445827,-574.81678748,0.00016712,2]
[357063934,1743683445837,-500.0,0.00016712,2]
[357063935,1743683445847,-500.0,0.00016712,2]
[357063936,1743683445858,-500.0,0.00016712,2]
[357063937,1743683445868,-500.0,0.00016712,2]
[357063938,1743683445878,-500.0,0.00016712,2]
[357063939,1743683445888,-587.28,0.00016712,2]
[357063940,1743683445897,-514.74,0.00016712,2]
[357063941,1743683445907,-503.91736698,0.00016712,2]
[357063942,1743683445917,-158.60377815,0.00016712,2]
[357063943,1743683445927,-500.0,0.00016712,2]
[357063944,1743683445937,-306.94836516,0.00016712,2]
[357063945,1743683445947,-238.79370003,0.00016712,2]
[357063946,1743683445957,-500.0,0.00016712,2]
[357063947,1743683445967,-500.0,0.00016712,2]
[357063948,1743683445977,-500.0,0.00016712,2]
[357063949,1743683445989,-687.11,0.00016712,2]
[357063950,1743683445999,-500.0,0.00016712,2]
[357063951,1743683446010,-500.0,0.00016712,2]
[357063952,1743683446020,-547.44963889,0.00016712,2]
[357063953,1743683446030,-327.99714443,0.00016712,2]
[357063954,1743683446039,-500.0,0.00016712,2]
[357063955,1743683446049,-273.74,0.00016712,2]
[357063956,1743683446059,-500.0,0.00016712,2]
[357063957,1743683446068,-500.0,0.00016712,2]
[357063959,1743683446078,-500.0,0.00016712,2]
[357063961,1743683446088,-500.0,0.00016712,2]
[357063963,1743683446099,-500.0,0.00016712,2]
[357063965,1743683446108,-500.0,0.00016712,2]
[357063967,1743683446118,-500.0,0.00016712,2]
[357063969,1743683446128,-500.0,0.00016712,2]
[357063971,1743683446137,-500.0,0.00016712,2]
[357063973,1743683446147,-500.0,0.00016712,2]
[357063975,1743683446157,-500.0,0.00016712,2]
[357063977,1743683446166,-500.0,0.00016712,2]
[357063979,1743683446176,-500.0,0.00016712,2]
[357063981,1743683446188,-252.44,0.00016712,2]
[357063983,1743683446198,-500.0,0.00016712,2]
[357063985,1743683446207,-500.0,0.00016712,2]
[357063987,1743683446217,-500.0,0.00016712,2]
[357063989,1743683446226,-500.0,0.00016712,2]
[357063990,1743683446236,-559.98652885,0.00016712,2]
[357063991,1743683446246,-500.0,0.00016712,2]
[357063992,1743683446256,-500.0,0.00016712,2]
[357063994,1743683446267,-500.0,0.00016712,2]
[357063995,1743683446276,-500.0,0.00016712,2]
[357063996,1743683446286,-500.0,0.00016712,2]
[357063997,1743683446296,-102181.4327205,0.00016712,2]
[357064024,1743683446910,-801.019182,0.00016436,2]
[357064025,1743683446920,-801.019182,0.00016436,2]
[357064026,1743683446930,-801.019182,0.00016437,2]
[357064028,1743683446940,-801.019182,0.00016437,2]
[357064030,1743683446950,-801.019182,0.00016437,2]
[357064032,1743683446959,-801.019182,0.00016437,2]
[357064034,1743683446969,-466.3625529,0.00016437,2]
[357064035,1743683446993,-334.6566291,0.00016437,2]
[357064036,1743683447004,-512.34677999,0.00016437,2]
[357064037,1743683447016,-288.67240201,0.00016437,2]
[357064038,1743683447026,-801.019182,0.00016437,2]
[357064039,1743683447036,-801.019182,0.00016437,2]
[357064040,1743683447046,-801.019182,0.00016437,2]
[357064041,1743683447055,-8116.47427137,0.00016712,2]
[357064042,1743683447165,-801.019182,0.00016437,2]
[357064043,1743683447175,-801.019182,0.00016437,2]
[357064044,1743683447184,-801.019182,0.00016437,2]
[357064045,1743683447194,-801.019182,0.00016437,2]
[357064046,1743683447203,-801.019182,0.00016437,2]
[357064047,1743683447212,-801.019182,0.00016437,2]
[357064048,1743683447222,-801.019182,0.00016437,2]
[357064049,1743683447231,-801.019182,0.00016437,2]
[357064050,1743683447243,-801.019175,0.00016437,2]
[357064051,1743683447253,-263.83061518,0.00016438,2]
[357064052,1743683447263,-500.0,0.00016438,2]
[357064053,1743683447273,-1624.62300813,0.00016712,2]
[357064054,1743683447283,-282.09,0.00016712,2]
[357064055,1743683447292,-256.67234268,0.00016712,2]
[357064056,1743683447302,-500.0,0.00016712,2]
[357064057,1743683447312,-483.13741505,0.00016712,2]
[357064058,1743683447325,-16.86258495,0.00016712,2]
[357064059,1743683447335,-512.81,0.00016712,2]
[357064060,1743683447345,-500.0,0.00016712,2]
[357064061,1743683447355,-500.0,0.00016712,2]
[357064062,1743683447365,-529.3,0.00016712,2]
[357064063,1743683447374,-500.0,0.00016712,2]
[357064064,1743683447383,-500.0,0.00016712,2]
[357064065,1743683447393,-500.0,0.00016712,2]
[357064066,1743683447402,-500.0,0.00016712,2]
[357064067,1743683447412,-500.0,0.00016712,2]
[357064068,1743683447421,-500.0,0.00016712,2]
[357064069,1743683447430,-500.0,0.00016712,2]
[357064070,1743683447441,-351.10676789,0.00016712,2]
[357064071,1743683447450,-500.0,0.00016712,2]
[357064072,1743683447460,-500.0,0.00016712,2]
[357064073,1743683447470,-395.3,0.00016712,2]
[357064074,1743683447479,-500.0,0.00016712,2]
[357064075,1743683447489,-500.0,0.00016712,2]
[357064076,1743683447499,-500.0,0.00016712,2]
[357064077,1743683447509,-500.0,0.00016712,2]
[357064078,1743683447519,-500.0,0.00016712,2]
[357064079,1743683447529,-500.0,0.00016712,2]
[357064080,1743683447538,-500.0,0.00016712,2]
[357064081,1743683447548,-500.0,0.00016712,2]
[357064082,1743683447559,-500.0,0.00016712,2]
[357064083,1743683447569,-517.13031392,0.00016712,2]
[357064084,1743683447579,-500.0,0.00016712,2]
[357064085,1743683447588,-500.0,0.00016712,2]
[357064086,1743683447598,-500.0,0.00016712,2]
[357064087,1743683447608,-500.0,0.00016712,2]
[357064088,1743683447619,-345.64612865,0.00016712,2]
[357064089,1743683447628,-500.0,0.00016712,2]
[357064090,1743683447639,-512.84829839,0.00016712,2]
[357064091,1743683447650,-165.68,0.00016712,2]
[357064092,1743683447659,-500.0,0.00016712,2]
[357064093,1743683447669,-500.0,0.00016712,2]
[357064094,1743683447679,-615.18,0.00016712,2]
[357064095,1743683447690,-500.0,0.00016712,2]
[357064096,1743683447700,-529.01,0.00016712,2]
[357064097,1743683447709,-500.0,0.00016712,2]
[357064098,1743683447720,-500.0,0.00016712,2]
[357064099,1743683447729,-452.75,0.00016712,2]
[357064100,1743683447740,-500.0,0.00016712,2]
[357064101,1743683447749,-500.0,0.00016712,2]
[357064102,1743683447759,-455.27,0.00016712,2]
[357064103,1743683447768,-733.09,0.00016712,2]
[357064104,1743683447778,-500.0,0.00016712,2]
[357064105,1743683447787,-500.0,0.00016712,2]
[357064106,1743683447797,-500.0,0.00016712,2]
[357064107,1743683447807,-500.0,0.00016712,2]
[357064108,1743683447816,-500.0,0.00016721,2]
[357064109,1743683447826,-500.0,0.00016721,2]
[357064110,1743683447919,-500.0,0.00016721,2]
[357064111,1743683447948,-5000.0,0.00016799,2]
[357064112,1743683447959,-2161.41689139,0.00016864,2]
[357064113,1743683447970,-151.0,0.000169,2]
[357064114,1743683447980,-151.0,0.000169,2]
[357064115,1743683447991,-151.0,0.000169,2]
[357064116,1743683448002,-151.0,0.000169,2]
[357064117,1743683448013,-500.0,0.00016986,2]
[357064118,1743683448023,-619.7,0.00016986,2]
[357064119,1743683448034,-321.01932539,0.00016986,2]
[357064120,1743683448044,-183.72696391,0.00016986,2]
[357064121,1743683448057,-500.0,0.00016986,2]
[357064122,1743683448068,-517.28400815,0.00016986,2]
[357064123,1743683448079,-478.38,0.00016986,2]
[357064124,1743683448091,-500.0,0.00016986,2]
[357064125,1743683448101,-500.0,0.00016986,2]
[357064126,1743683448112,-500.0,0.00016986,2]
[357064127,1743683448123,-341.36,0.00016986,2]
[357064128,1743683448133,-270.23,0.00016986,2]
[357064129,1743683448143,-414.94099458,0.00016986,2]
[357064130,1743683448153,-204.52590555,0.00016986,2]
[357064131,1743683448163,-500.0,0.00016986,2]
[357064132,1743683448173,-500.0,0.00016986,2]
[357064133,1743683448183,-500.0,0.00016986,2]
[357064134,1743683448194,-507.83,0.00016986,2]
[357064135,1743683448204,-500.0,0.00016986,2]
[357064136,1743683448214,-195.91234579,0.00016986,2]
[357064137,1743683448224,-500.0,0.00016986,2]
[357064138,1743683448234,-500.0,0.00016986,2]
[357064139,1743683448246,-500.0,0.00016986,2]
[357064140,1743683448256,-500.0,0.00016986,2]
[357064141,1743683448267,-392.77213403,0.00016986,2]
[357064142,1743683448277,-500.0,0.00016986,2]
[357064143,1743683448288,-523.30421432,0.00016986,2]
[357064144,1743683448300,-500.0,0.00016986,2]
[357064145,1743683448310,-500.0,0.00016986,2]
[357064146,1743683448320,-500.0,0.00016986,2]
[357064147,1743683448330,-500.0,0.00016986,2]
[357064148,1743683448341,-588.68,0.00016986,2]
[357064149,1743683448351,-500.0,0.00016986,2]
[357064150,1743683448361,-512.46499512,0.00016986,2]
[357064151,1743683448372,-500.0,0.00016986,2]
[357064152,1743683448382,-510.48550999,0.00016986,2]
[357064153,1743683448392,-500.0,0.00016986,2]
[357064154,1743683448402,-500.0,0.00016986,2]
[357064155,1743683448412,-500.0,0.00016986,2]
[357064156,1743683448423,-500.0,0.00016986,2]
[357064157,1743683448433,-478.98,0.00016986,2]
[357064158,1743683448443,-500.0,0.00016986,2]
[357064159,1743683448453,-500.0,0.00016986,2]
[357064160,1743683448462,-500.0,0.00016986,2]
[357064161,1743683448472,-500.0,0.00016986,2]
[357064162,1743683448482,-500.0,0.00016986,2]
[357064163,1743683448494,-500.0,0.00016986,2]
[357064164,1743683448504,-500.0,0.00016986,2]
[357064165,1743683448515,-500.0,0.00016986,2]
[357064166,1743683448524,-26267.50261798,0.00016986,2]
[357064167,1743683448539,-261.39865211,0.00016986,2]
[357064168,1743683448575,-500.0,0.00016438,2]
[357064169,1743683448585,-1265.512792,0.00016986,2]
[357064171,1743683909369,20000.0,0.00025,30]
[357064176,1743684068139,13288.0,0.00025,30]
[357064177,1743684289338,282.49994314,0.00013741,2]
[357064190,1743684494020,237.82,0.00010959,2]
[357064192,1743684504620,198.18,0.00010959,2]
[357064193,1743684515154,165.15,0.00010959,2]
[357064194,1743684525709,825.8,0.00010959,2]
[357064250,1743684632201,-930.39576144,0.00015256,2]
[357064251,1743684632212,-225.5687012,0.00015411,2]
[357064252,1743684632222,-298.234227,0.00015437,2]
[357064253,1743684632233,-1368.0,0.00016,2]
[357064254,1743684632242,-264.78046834,0.00016237,2]
[357064255,1743684632251,-1072.40156373,0.00016338,2]
[357064256,1743684632261,-200.74132307,0.00016338,2]
[357064257,1743684632271,-151.0,0.00016428,2]
[357064258,1743684632281,-2330.40045931,0.00016434,2]
[357064259,1743684632291,-300.0,0.00016436,2]
[357064261,1743684632301,-7816.20227494,0.00016437,2]
[357064263,1743684632310,-168.60346843,0.00016437,2]
[357064265,1743684632320,-344.29156034,0.00016437,2]
[357064267,1743684632329,-162.47798432,0.00016437,2]
[357064269,1743684632338,-160.7736668,0.00016437,2]
[357064271,1743684632347,-160.0,0.00016437,2]
[357064273,1743684632357,-160.0,0.00016437,2]
[357064275,1743684632366,-500.0,0.00016438,2]
[357064277,1743684632375,-500.0,0.00016438,2]
[357064278,1743684632384,-500.0,0.00016438,2]
[357064279,1743684632394,-505.71025503,0.00016438,2]
[357064280,1743684632403,-500.0,0.00016438,2]
[357064281,1743684632412,-500.0,0.00016438,2]
[357064282,1743684632426,-299.12110271,0.00016438,2]
[357064283,1743684632436,-500.0,0.00016438,2]